bitfinex-derivatives/quotes_ETHF0:USTF0_20260223
["timestamp","ask_amount","ask_price","bid_price","bid_amount"]
[1771869877674,4.35367555,1869.4,1867.9,2.9635586]
[1771869877976,4.35367555,1869.4,1867.9,9.82833448]
[1771869878567,4.35367555,1869.4,1868.0,2.95652813]
[1771869878973,4.35367555,1869.4,1868.2,2.97219987]
[1771869879574,4.35367555,1869.4,1868.3,9.80015961]
[1771869879979,4.35367555,1869.4,1868.3,2.96515582]
[1771869880791,4.35367555,1869.4,1868.1,3.10783661]
[1771869880981,4.34676259,1869.2,1867.8,3.10783661]
[1771869881281,4.34676259,1869.2,1867.8,10.13495597]
[1771869881580,4.34676259,1869.2,1867.8,3.10783661]
[1771869881876,4.34676259,1869.2,1868.0,3.10018555]
[1771869882584,4.61429259,1869.1,1867.8,3.09801185]
[1771869882779,4.34676259,1869.0,1867.8,3.09801185]
[1771869883076,4.34676259,1869.0,1867.6,3.10483745]
[1771869883077,4.34676259,1868.6,1867.6,3.10483745]
[1771869884972,4.34676259,1868.3,1866.8,3.13429012]
[1771869885179,4.61440259,1868.3,1867.1,3.13429012]
[1771869885379,4.61440259,1868.3,1867.2,3.13429012]
[1771869885581,4.61440259,1868.3,1867.0,3.13429012]
[1771869885778,4.61443259,1868.1,1867.1,0.0068256]
[1771869885978,4.61443259,1868.1,1867.1,0.01175043]
[1771869887385,4.34676259,1867.9,1867.1,0.00492483]
[1771869887579,4.35118146,1867.9,1867.1,0.00492483]
[1771869888484,4.42069067,1867.5,1866.6,3.12550906]
[1771869888679,4.42069067,1867.1,1865.6,3.1467175]
[1771869888888,4.42069067,1866.7,1865.6,3.4147375]
[1771869889080,4.42069067,1866.7,1865.7,6.84848378]
[1771869889276,4.42069067,1866.7,1865.5,3.1467175]
[1771869889483,4.42069067,1866.5,1865.5,3.15288824]
[1771869889683,4.42491223,1866.5,1865.5,3.15288824]
[1771869890182,4.42491223,1866.5,1865.5,0.00617074]
[1771869893486,4.42069067,1866.3,1865.5,0.00617074]
[1771869893990,4.42069067,1865.9,1864.7,3.00443681]
[1771869894299,4.42069067,1865.7,1864.7,9.90608498]
[1771869894477,4.42069067,1865.7,1864.7,6.90164817]
[1771869894678,4.42069067,1865.7,1864.5,3.00443681]
[1771869895078,4.42069067,1865.7,1864.5,3.01090952]
[1771869895282,4.42069067,1865.5,1864.5,0.00647271]
[1771869896287,4.42069067,1865.5,1864.5,2.9711978]
[1771869897487,4.42069067,1865.5,1864.7,2.95604874]
[1771869897686,4.42069067,1866.0,1864.7,2.95604874]
[1771869897888,4.42069067,1866.0,1864.9,2.94869743]
[1771869899188,4.42069067,1866.0,1864.6,3.0053132]
[1771869899488,4.42069067,1866.0,1864.7,2.99856433]
[1771869899884,4.42069067,1866.0,1864.9,2.99793764]
[1771869900481,4.42069067,1866.0,1864.7,2.99120463]
[1771869900790,4.42069067,1865.8,1864.5,2.96630514]
[1771869901187,4.42069067,1865.8,1864.9,2.95983243]
[1771869901482,4.42069067,1866.0,1865.0,2.95983243]
[1771869902589,4.42069067,1866.0,1864.6,2.7884429]
[1771869902782,4.42069067,1865.8,1864.6,2.7884429]
[1771869903088,4.42069067,1865.8,1864.7,2.7884429]
[1771869903887,4.42069067,1865.8,1864.9,2.78118765]
[1771869904291,4.42069067,1865.8,1865.1,2.78118765]
[1771869904885,4.42069067,1865.8,1864.5,0.00647271]
[1771869904886,4.42069067,1865.8,1864.8,2.76154327]
[1771869906687,4.42069067,1865.6,1864.6,2.98549813]
[1771869907788,4.42069067,1865.6,1864.6,2.71732813]
[1771869907981,4.42069067,1865.6,1864.5,0.00647271]
[1771869908388,4.42069067,1865.6,1864.5,2.7167504]
[1771869909194,4.42069067,1865.6,1864.5,0.00647271]
[1771869910095,4.42069067,1865.6,1864.5,2.66996704]
[1771869911500,4.42069067,1865.4,1864.5,2.66996704]
[1771869911695,4.42069067,1865.4,1864.5,0.00647271]
[1771869912097,4.42069067,1865.4,1864.5,2.6477184]
[1771869913892,4.42069067,1865.4,1864.5,2.9158984]
[1771869914097,4.42069067,1865.4,1864.7,2.89346125]
[1771869915601,4.42069067,1865.8,1864.7,2.89346125]
[1771869915804,4.42069067,1866.2,1864.9,2.83511595]
[1771869916002,4.42069067,1866.0,1865.3,2.56698595]
[1771869916202,4.42069067,1866.4,1865.3,2.56698595]
[1771869916397,4.98913916,1866.3,1865.4,6.99099252]
[1771869916697,4.42069067,1866.3,1865.5,2.56698595]
[1771869917094,9.79069067,1866.3,1864.8,2.55175896]
[1771869917294,4.42069067,1865.8,1864.6,2.55175896]
[1771869917597,4.42069067,1865.6,1864.6,2.55175896]
[1771869917801,4.47595548,1865.5,1864.6,2.55175896]
[1771869918192,4.47595548,1865.5,1864.6,2.81992896]
[1771869918400,4.47595548,1865.7,1864.8,2.53557587]
[1771869918599,0.57127512,1865.6,1864.8,2.53557587]
[1771869918799,4.47595548,1865.7,1865.0,2.46797334]
[1771869919002,0.57127186,1865.6,1865.0,2.46797334]
[1771869919203,4.47595548,1865.7,1865.0,2.46797334]
[1771869919398,4.47595548,1865.9,1865.0,2.46797334]
[1771869919598,5.04748085,1865.8,1865.0,2.46797334]
[1771869919794,5.04748085,1865.7,1865.0,2.46797334]
[1771869920003,5.04748085,1865.6,1865.0,2.46797334]
[1771869920302,4.47595548,1865.6,1865.0,2.46797334]
[1771869920693,5.04318235,1865.5,1864.5,2.47367122]
[1771869920903,0.26799,1865.9,1864.5,0.00647271]
[1771869920904,4.47138724,1865.3,1864.5,0.00647271]
[1771869921200,4.47138724,1865.1,1864.5,0.00647271]
[1771869921402,4.47518046,1865.1,1864.5,0.00647271]
[1771869921900,4.47518046,1865.1,1864.5,2.45882235]
[1771869924001,0.00379322,1865.1,1864.5,2.45882235]
[1771869924207,4.42795099,1866.0,1864.5,2.45882235]
[1771869924208,4.47138724,1865.5,1864.7,2.43113769]
[1771869924406,0.57238479,1865.4,1864.7,2.43113769]
[1771869924604,0.57238479,1865.3,1864.7,2.43113769]
[1771869924804,4.47138724,1865.5,1864.7,2.43113769]
[1771869925005,0.57237531,1865.4,1864.7,2.43113769]
[1771869925204,0.57237531,1865.3,1864.7,2.43113769]
[1771869925400,4.47138724,1866.0,1864.7,2.43113769]
[1771869925606,4.47138724,1866.1,1865.2,0.26809]
[1771869926108,4.47138724,1866.1,1865.2,2.12022807]
[1771869926498,4.47791796,1866.1,1865.2,2.12022807]
[1771869926704,4.47791796,1866.1,1865.2,1.85213807]
[1771869927007,4.47138724,1866.0,1864.7,2.17578279]
[1771869927404,4.47138724,1866.0,1865.0,1.90763279]
[1771869927599,4.47138724,1866.0,1865.0,2.17574279]
[1771869927805,4.47138724,1866.0,1865.1,6.83237791]
[1771869928105,4.47138724,1866.0,1865.1,8.72690693]
[1771869930210,4.47138724,1866.0,1865.2,1.88548792]
[1771869930810,4.47138724,1866.0,1865.0,2.13323968]
[1771869931105,4.47138724,1866.0,1865.1,6.97600659]
[1771869931508,4.47138724,1866.0,1864.8,1.85243302]
[1771869931707,4.47138724,1865.8,1864.5,6.61791098]
[1771869932009,4.47138724,1865.6,1864.5,0.00647271]
[1771869932508,4.47138724,1865.4,1864.5,0.00647271]
[1771869933106,4.47138724,1865.4,1864.5,1.81865227]
[1771869936110,4.47138724,1865.4,1864.5,2.08683227]
[1771869936409,4.47138724,1865.9,1864.9,1.79422641]
[1771869936613,4.73950724,1865.1,1863.9,4.28930621]
[1771869936807,4.47138724,1864.9,1863.9,4.28930621]
[1771869937113,4.47138724,1864.9,1863.5,4.28930621]
[1771869937121,4.73954724,1864.7,1863.5,4.28930621]
[1771869937504,4.47138724,1864.5,1863.5,4.28930621]
[1771869937813,5.02067866,1864.4,1863.5,4.29551543]
[1771869938013,4.47138724,1864.4,1863.6,4.28930621]
[1771869938314,4.47138724,1864.4,1863.7,4.28930621]
[1771869938611,4.47138724,1864.4,1863.7,6.97010621]
[1771869938913,4.47138724,1864.4,1863.8,2.6808]
[1771869939409,4.47138724,1864.4,1863.7,4.28930621]
[1771869939612,4.47138724,1864.4,1863.7,6.97010621]
[1771869940305,4.47138724,1864.4,1863.5,0.00620922]
[1771869940613,4.47138724,1864.2,1863.1,4.28930621]
[1771869940814,4.47138724,1864.0,1863.1,4.28930621]
[1771869941012,4.47138724,1864.0,1863.0,6.98983238]
[1771869941215,5.01960179,1863.9,1862.8,4.28930621]
[1771869941412,4.47138724,1863.7,1862.8,4.28930621]
[1771869941605,7.88822557,1863.7,1862.8,0.00380297]
[1771869941810,4.47138724,1863.5,1862.5,4.28930621]
[1771869942115,4.47138724,1863.5,1861.9,6.87532]
[1771869942116,4.47138724,1863.3,1862.3,4.28930621]
[1771869942406,4.47138724,1863.0,1862.0,11.23765762]
[1771869942613,4.47138724,1863.0,1862.1,4.28930621]
[1771869942807,0.00594568,1863.0,1862.2,4.28930621]
[1771869943013,4.47138724,1863.4,1862.4,4.28930621]
[1771869943313,4.47138724,1863.4,1862.8,4.28930621]
[1771869943511,4.47138724,1863.4,1862.7,2.6808]
[1771869943701,4.47138724,1863.4,1862.6,4.28930621]
[1771869943907,4.47716113,1863.4,1862.6,4.28930621]
[1771869944312,4.47716113,1863.4,1862.7,2.6808]
[1771869944715,4.47716113,1863.4,1862.6,4.28930621]
[1771869945316,4.47716113,1863.4,1862.7,2.6808]
[1771869945510,4.47716113,1863.4,1862.6,4.28930621]
[1771869945707,4.47716113,1863.4,1862.2,4.28930621]
[1771869946014,4.47716113,1863.4,1862.5,4.28930621]
[1771869946413,4.47716113,1863.4,1862.7,6.97010621]
[1771869946609,4.47716113,1863.4,1862.7,4.28930621]
[1771869946809,4.47716113,1863.4,1862.7,6.97010621]
[1771869947113,4.47138724,1863.8,1862.8,7.0243604]
[1771869947414,4.47138724,1863.8,1862.3,10.29037833]
[1771869947415,4.47138724,1863.8,1862.9,4.28930621]
[1771869947915,4.47138724,1863.8,1862.5,4.61895979]
[1771869948208,4.47622869,1863.8,1862.5,4.61895979]
[1771869948716,4.47088159,1863.6,1862.5,4.61895979]
[1771869949109,4.47088159,1863.6,1862.6,4.61895979]
[1771869949511,4.47088159,1863.6,1862.3,0.2685]
[1771869949512,4.47088159,1863.6,1862.4,4.61895979]
[1771869950012,4.47088159,1863.6,1862.5,4.61895979]
[1771869950310,4.47088159,1863.6,1862.6,4.61895979]
[1771869950513,4.47088159,1863.6,1862.7,4.61895979]
[1771869950715,4.47088159,1863.6,1862.8,4.61895979]
[1771869951111,4.47088159,1863.6,1862.9,4.61895979]
[1771869951512,4.47088159,1862.9,1861.7,4.61895979]
[1771869951811,4.47088159,1862.7,1861.7,4.61895979]
[1771869952314,4.47088159,1862.7,1861.9,4.61895979]
[1771869952516,4.47088159,1862.7,1861.9,4.62399352]
[1771869952710,4.47088159,1862.7,1862.2,7.72386734]
[1771869952909,4.47088159,1862.7,1862.0,4.61895979]
[1771869953104,4.47088159,1862.7,1861.9,0.00503373]
[1771869953507,4.73934159,1862.6,1861.6,0.88640495]
[1771869953712,4.47088159,1862.3,1861.6,0.89143868]
[1771869954420,3.41683833,1861.9,1861.1,4.61895979]
[1771869954714,4.47088159,1861.8,1861.2,0.00503373]
[1771869954913,4.47088159,1861.8,1861.2,7.72890107]
[1771869955108,0.00550076,1861.9,1861.2,4.62399352]
[1771869955311,0.00550076,1861.9,1861.4,12.34282713]
[1771869955519,4.47638235,1861.9,1861.3,0.00503373]
[1771869955714,4.47638235,1861.9,1861.2,4.62399352]
[1771869955907,4.47638235,1861.9,1861.2,0.00503373]
[1771869956110,4.47638235,1861.9,1861.2,4.62399352]
[1771869956312,4.47638235,1861.9,1861.5,7.72386734]
[1771869956514,4.19575136,1861.9,1861.5,12.34282713]
[1771869956708,4.19575136,1861.9,1861.5,4.61895979]
[1771869956909,4.47088159,1862.4,1861.6,0.00503373]
[1771869957308,4.47088159,1862.1,1861.1,4.62455286]
[1771869957515,4.47740615,1862.1,1861.4,4.61895979]
[1771869957713,4.47740615,1862.1,1861.1,0.00559307]
[1771869957714,4.47740615,1862.1,1861.2,4.61895979]
[1771869957911,4.47740615,1862.1,1861.4,4.61895979]
[1771869958112,4.47740615,1862.1,1861.5,7.12117478]
[1771869958317,4.47740615,1862.1,1861.5,4.61895979]
[1771869958920,4.47740615,1862.1,1861.7,7.72386734]
[1771869959219,4.47740615,1862.1,1861.5,4.61895979]
[1771869959414,4.47740615,1862.1,1861.7,7.72386734]
[1771869959615,4.47088159,1862.3,1861.5,4.61895979]
[1771869959825,4.47088159,1862.8,1861.7,4.61895979]
[1771869960223,4.47088159,1862.7,1861.7,4.61895979]
[1771869960425,3.41683833,1862.8,1861.1,0.00559307]
[1771869960426,4.47088159,1862.4,1861.5,4.61895979]
[1771869960624,4.47702006,1862.4,1861.5,4.61895979]
[1771869960926,4.47702006,1862.4,1861.6,4.61895979]
[1771869961127,4.47702006,1862.4,1861.5,6.95829882]
[1771869961128,4.47702006,1862.4,1861.8,7.72386734]
[1771869961326,4.47702006,1862.4,1861.2,4.88761979]
[1771869961524,4.47088159,1862.2,1861.2,4.61895979]
[1771869961930,4.47088159,1862.1,1861.2,4.61895979]
[1771869962131,4.47088159,1862.1,1861.3,5.35787262]
[1771869962330,4.47088159,1862.1,1861.3,4.61895979]
[1771869962727,4.47088159,1862.1,1861.1,4.62455286]
[1771869963331,7.88771992,1861.9,1861.1,0.00559307]
[1771869963535,4.73943159,1862.0,1861.3,4.61895979]
[1771869963727,4.47088159,1862.3,1861.3,4.61895979]
[1771869964135,4.47088159,1862.3,1861.5,4.61895979]
[1771869964328,4.47088159,1862.3,1861.2,4.61895979]
[1771869964532,4.47088159,1862.3,1861.4,0.73891283]
[1771869964734,4.47088159,1862.2,1861.4,5.35787262]
[1771869965036,4.47088159,1862.2,1861.5,0.73891283]
[1771869965238,4.47088159,1862.2,1861.4,4.61895979]
[1771869965435,4.47088159,1862.2,1861.2,4.61895979]
[1771869965937,4.47088159,1861.3,1860.1,4.88777979]
[1771869966138,4.47088159,1861.1,1860.1,4.88777979]
[1771869966328,4.47088159,1861.1,1860.2,5.35787262]
[1771869966634,4.47088159,1861.1,1860.2,4.61895979]
[1771869966937,4.47088159,1861.1,1860.2,4.6250954]
[1771869967133,4.47088159,1861.3,1860.2,4.6250954]
[1771869967431,4.47088159,1861.3,1860.3,4.61895979]
[1771869967833,4.47088159,1861.3,1860.6,0.73891283]
[1771869968031,9.84088159,1861.3,1860.6,0.51733506]
[1771869968235,4.47088159,1861.1,1860.3,4.61895979]
[1771869968436,4.47088159,1861.1,1860.2,0.00613561]
[1771869968739,9.84088159,1861.1,1860.2,0.00613561]
[1771869968938,4.47088159,1861.0,1860.3,0.51733506]
[1771869969239,4.47557007,1861.0,1860.2,0.00613561]
[1771869969440,4.47557007,1861.0,1860.3,0.51733506]
[1771869969741,4.47557007,1861.0,1860.2,4.6250954]
[1771869970038,4.47088159,1860.8,1860.2,0.00613561]
[1771869970334,4.47088159,1860.8,1860.3,4.61895979]
[1771869970742,4.47088159,1860.9,1860.3,4.61895979]
[1771869971638,4.47088159,1860.9,1860.2,0.00613561]
[1771869973831,4.47088159,1860.9,1860.2,4.6250954]
[1771869974032,4.47088159,1860.8,1860.2,4.6250954]
[1771869974534,4.47557007,1861.0,1860.2,4.6250954]
[1771869976641,0.00468848,1861.0,1860.2,4.6250954]
[1771869977138,4.47557007,1861.0,1860.2,4.6250954]
[1771869977338,0.00468848,1861.0,1860.2,4.6250954]
[1771869977733,4.91670144,1861.0,1860.2,4.6250954]
[1771869978235,0.00468848,1861.0,1860.2,4.6250954]
[1771869978439,0.00468848,1861.0,1860.4,5.03121392]
[1771869978742,4.91201296,1861.3,1860.4,5.03121392]
[1771869978937,5.18063296,1861.5,1860.4,5.03121392]
[1771869979643,5.1853832,1861.5,1860.4,5.03121392]
[1771869980839,4.9089925,1861.4,1860.4,5.03121392]
[1771869981044,4.9089925,1861.2,1860.4,5.03121392]
[1771869981244,4.9089925,1861.4,1860.4,5.03121392]
[1771869981545,4.9089925,1861.3,1860.4,5.03121392]
[1771869983547,0.00475024,1861.5,1860.2,0.00613561]
[1771869983548,4.9089925,1860.7,1860.2,0.00613561]
[1771869983846,4.9089925,1860.7,1860.2,4.88604185]
[1771869984041,4.9089925,1860.7,1860.2,0.00613561]
[1771869985652,4.9089925,1860.7,1860.2,4.88604185]
[1771869986454,4.9089925,1860.7,1860.2,0.00613561]
[1771869986751,4.9089925,1860.7,1859.9,4.87990624]
[1771869987845,4.9089925,1860.7,1859.9,4.88386282]
[1771869988750,4.9089925,1860.7,1859.9,5.15270282]
[1771869990548,4.9089925,1860.7,1859.9,4.88386282]
[1771869990846,4.9089925,1860.5,1859.9,4.88386282]
[1771869991041,4.9089925,1861.0,1859.9,4.88386282]
[1771869991252,0.55385636,1860.9,1860.1,4.87990624]
[1771869991446,4.9089925,1861.1,1860.1,4.87990624]
[1771869991647,4.9089925,1860.9,1860.1,4.87990624]
[1771869992446,5.46311275,1860.8,1860.1,4.87990624]
[1771869992647,4.9089925,1860.8,1860.1,4.87990624]
[1771869993047,4.9089925,1860.6,1860.1,4.87990624]
[1771869993847,4.9089925,1860.6,1859.9,4.88386282]
[1771869994044,5.46347608,1860.5,1859.9,4.88386282]
[1771869994244,4.9089925,1860.5,1859.9,4.88386282]
[1771869995147,4.9089925,1860.5,1859.9,0.00395658]
[1771869995353,5.4646456,1860.4,1859.9,4.37664501]
[1771869995554,0.5556531,1860.3,1859.9,4.37664501]
[1771869995748,5.4646456,1860.3,1859.9,4.37664501]
[1771869995947,4.9089925,1860.3,1859.3,4.87990624]
[1771869996452,4.9089925,1860.3,1859.4,4.87990624]
[1771869996952,4.9089925,1860.6,1859.6,4.87990624]
[1771869997151,5.4645215,1860.5,1859.6,4.87990624]
[1771869997351,5.4645215,1860.4,1859.6,4.87990624]
[1771869997549,0.555529,1860.3,1859.6,4.87990624]
[1771869997748,4.9089925,1860.4,1859.6,4.87990624]
[1771869997948,0.55544255,1860.3,1859.6,4.87990624]
[1771869998149,0.55544255,1860.3,1859.3,0.00423199]
[1771869998150,4.9089925,1860.4,1859.4,4.87990624]
[1771869998458,4.9089925,1860.1,1859.4,4.87990624]
[1771869998747,4.91535217,1860.1,1859.4,4.87990624]
[1771869999554,0.00635967,1860.1,1859.4,4.87990624]
[1771869999950,4.91535217,1860.1,1859.4,4.87990624]
[1771870000949,4.91535217,1860.1,1859.3,0.00423199]
[1771870000950,4.9089925,1859.9,1859.3,4.88413823]
[1771870001552,4.9089925,1859.9,1859.3,0.00423199]
[1771870001757,4.9089925,1859.7,1858.7,4.87990624]
[1771870002054,4.9089925,1859.5,1858.7,4.87990624]
[1771870002250,4.73324397,1860.1,1858.8,0.26901]
[1771870002251,4.9089925,1859.7,1858.8,0.26901]
[1771870002447,4.9089925,1859.7,1858.9,4.87990624]
[1771870002648,4.9089925,1859.7,1858.9,4.8846772]
[1771870002955,4.9089925,1859.7,1858.9,0.00477096]
[1771870003751,0.27518967,1860.1,1858.9,0.00477096]
[1771870003752,4.9089925,1859.5,1858.9,0.00477096]
[1771870004550,4.9089925,1859.7,1858.9,4.8846772]
[1771870004756,5.45512656,1859.6,1858.9,4.8846772]
[1771870004951,4.9089925,1859.6,1858.9,4.8846772]
[1771870006260,4.91535217,1860.1,1859.1,4.87990624]
[1771870009362,4.65476597,1859.9,1858.9,4.5384688]
[1771870009551,4.65476597,1859.9,1858.9,0.00477096]
[1771870009756,4.65476597,1859.7,1858.9,4.5384688]
[1771870011261,4.65476597,1859.7,1858.9,0.00477096]
[1771870012861,4.65476597,1859.7,1858.9,4.5384688]
[1771870013259,4.65476597,1859.7,1858.9,0.00477096]
[1771870014261,4.65476597,1859.5,1858.9,0.00477096]
[1771870016057,4.65476597,1859.5,1858.9,4.5384688]
[1771870016254,4.65476597,1860.0,1858.9,4.5384688]
[1771870016455,4.65476597,1859.8,1859.1,4.53369784]
[1771870016660,4.65476597,1859.8,1859.0,4.80267784]
[1771870016865,4.65476597,1859.8,1859.0,4.53369784]
[1771870017159,4.65476597,1859.8,1858.9,4.5384688]
[1771870017566,4.65476597,1859.8,1859.1,4.53369784]
[1771870019369,4.65476597,1859.8,1858.9,0.00477096]
[1771870019370,4.65476597,1859.8,1858.9,4.5384688]
[1771870021463,4.65476597,1859.6,1858.9,4.5384688]
[1771870022668,4.65476597,1859.8,1859.1,4.53369784]
[1771870023866,4.65476597,1860.0,1859.1,4.53369784]
[1771870024071,5.1966182,1859.9,1859.1,4.53369784]
[1771870024371,4.65476597,1859.9,1859.1,4.53369784]
[1771870024567,0.00635967,1860.1,1859.5,4.53369784]
[1771870025166,4.65476597,1860.3,1859.7,4.53369784]
[1771870025564,5.19673293,1860.2,1859.3,4.53369784]
[1771870025768,4.65476597,1860.0,1859.1,4.53369784]
[1771870025968,0.54196696,1859.9,1859.1,4.53369784]
[1771870026170,0.00695264,1859.9,1859.1,4.53369784]
[1771870026370,4.66171861,1859.9,1859.3,4.53369784]
[1771870026766,0.00695264,1859.9,1859.3,4.53369784]
[1771870026971,4.65476597,1860.3,1859.5,4.53369784]
[1771870027172,4.65476597,1860.5,1859.5,4.53369784]
[1771870027474,5.19702649,1860.4,1859.7,4.53369784]
[1771870027668,10.11904814,1861.2,1859.7,4.80256784]
[1771870027669,4.65476597,1860.7,1859.7,4.80256784]
[1771870027868,5.19711213,1860.6,1859.9,4.53369784]
[1771870028069,4.65476597,1860.6,1859.9,4.53369784]
[1771870028468,14.00089337,1861.3,1860.1,4.53369784]
[1771870028469,4.65476597,1861.0,1860.1,4.53369784]
[1771870028669,0.54196695,1860.9,1860.1,4.53369784]
[1771870028873,4.65476597,1861.0,1860.3,4.53369784]
[1771870029075,0.54189898,1860.9,1860.3,4.53369784]
[1771870029267,8.56366729,1861.3,1860.3,4.53369784]
[1771870029268,4.65476597,1861.2,1860.3,4.53369784]
[1771870029471,0.00549245,1861.2,1860.5,4.53369784]
[1771870029982,4.66025842,1861.2,1860.5,4.53369784]
[1771870031071,0.00549245,1861.2,1860.5,4.53369784]
[1771870031376,4.65476597,1861.6,1860.7,4.53369784]
[1771870031579,4.65476597,1861.8,1860.9,4.53369784]
[1771870031878,4.65476597,1862.2,1861.1,4.53369784]
[1771870032077,4.65476597,1862.0,1861.1,4.53369784]
[1771870032272,0.00391217,1862.0,1861.1,4.53369784]
[1771870032582,4.65476597,1862.4,1861.3,4.53369784]
[1771870033275,4.92326597,1862.4,1861.3,4.53369784]
[1771870033574,4.92746418,1862.4,1861.3,4.53369784]
[1771870033778,4.65896418,1862.4,1861.3,4.53369784]
[1771870034875,4.65476597,1862.2,1861.3,4.53369784]
[1771870035379,4.65476597,1862.2,1861.1,4.53369784]
[1771870038977,4.65476597,1862.2,1861.3,4.63931561]
[1771870040082,4.65476597,1862.2,1861.5,4.51962334]
[1771870040878,4.65476597,1862.2,1860.9,4.51962334]
[1771870041377,4.65476597,1862.2,1861.0,4.51962334]
[1771870043080,4.65476597,1862.2,1861.4,4.51962334]
[1771870045884,4.64249492,1861.9,1861.0,4.51962334]
[1771870047984,0.00419821,1862.4,1861.2,4.51962334]
[1771870047985,4.64249492,1862.3,1861.2,4.51962334]
[1771870048185,4.64249492,1862.3,1861.4,4.51962334]
[1771870049085,4.64249492,1862.3,1861.6,4.51962334]
[1771870049676,0.00419821,1862.4,1861.6,4.51962334]
[1771870050388,0.00419821,1862.4,1861.8,4.51962334]
[1771870050588,4.64249492,1862.7,1861.8,4.51962334]
[1771870050884,0.26838,1863.2,1862.0,4.51962334]
[1771870050885,4.64249492,1863.1,1862.0,4.51962334]
[1771870051077,4.64249492,1862.6,1861.3,4.51962334]
[1771870051484,4.64249492,1862.6,1861.6,4.51962334]
[1771870051782,4.64918377,1862.6,1861.6,4.51962334]
[1771870052381,4.64918377,1862.6,1861.8,4.51962334]
[1771870052783,4.64918377,1862.6,1862.0,4.51962334]
[1771870055087,4.64918377,1862.6,1861.6,4.51962334]
[1771870055288,4.64249492,1862.4,1861.6,4.51962334]
[1771870057383,5.18341855,1862.3,1861.6,4.51962334]
[1771870057590,4.64249492,1862.3,1861.6,4.51962334]
[1771870058385,0.54162089,1862.2,1861.6,4.51962334]
[1771870058593,4.64249492,1862.3,1861.6,4.51962334]
[1771870059387,4.64249492,1862.3,1861.4,0.26863]
[1771870059388,4.64249492,1862.5,1861.8,4.51962334]
[1771870059588,0.00668885,1862.6,1862.0,4.51962334]
[1771870059884,4.64918377,1862.6,1861.8,4.51962334]
[1771870060086,4.64249492,1862.4,1861.8,4.51962334]
[1771870060593,4.64918377,1862.6,1861.8,4.51962334]
[1771870060791,5.18515349,1862.5,1861.8,4.51962334]
[1771870061089,0.54265857,1862.4,1861.8,4.51962334]
[1771870061289,4.64249492,1862.5,1861.8,4.51962334]
[1771870061490,5.18521904,1862.4,1861.8,4.51962334]
[1771870061690,4.64249492,1862.4,1861.8,4.51962334]
[1771870061888,4.64249492,1862.4,1861.3,6.44]
[1771870061889,4.64249492,1862.4,1861.4,4.51962334]
[1771870062188,0.54266869,1862.3,1861.5,4.51962334]
[1771870062491,5.18516361,1862.2,1861.5,4.51962334]
[1771870062787,4.64249492,1862.5,1861.5,4.51962334]
[1771870062985,5.18550333,1862.4,1861.7,4.51962334]
[1771870063189,0.54300841,1862.3,1861.7,4.51962334]
[1771870063389,4.64918377,1862.6,1861.7,4.51962334]
[1771870065195,0.00668885,1862.6,1861.9,4.51962334]
[1771870065594,0.26836,1863.4,1862.3,4.51962334]
[1771870065595,4.64249492,1863.1,1862.3,4.51962334]
[1771870065892,4.64249492,1863.3,1862.3,4.51962334]
[1771870066197,4.64249492,1863.5,1862.7,4.51962334]
[1771870066392,4.64249492,1864.0,1862.7,4.51962334]
[1771870066695,4.64249492,1863.8,1862.7,4.52640036]
[1771870066894,4.64811348,1864.0,1863.1,4.51962334]
[1771870067086,0.00561856,1864.0,1863.1,4.51962334]
[1771870067292,0.00561856,1864.0,1863.3,4.51962334]
[1771870067598,9.03211588,1864.5,1863.5,4.51962334]
[1771870067599,4.64249492,1864.4,1863.5,4.51962334]
[1771870068597,4.64626716,1864.4,1863.5,4.51962334]
[1771870069494,3.99052685,1864.3,1863.3,4.03202515]
[1771870070494,3.99052685,1864.0,1862.8,4.03202515]
[1771870070889,3.99052685,1864.0,1862.9,4.03202515]
[1771870071294,3.99052685,1864.0,1863.1,4.03202515]
[1771870072294,3.99052685,1864.0,1863.3,4.03202515]
[1771870073197,3.99052685,1864.0,1863.0,4.03202515]
[1771870073601,3.99052685,1864.0,1863.1,4.03202515]
[1771870078702,0.26822,1864.3,1863.3,4.03202515]
[1771870078703,3.99052685,1864.2,1863.3,4.03202515]
[1771870080302,3.99052685,1863.7,1862.9,4.03202515]
[1771870081493,3.99052685,1863.9,1862.9,4.03202515]
[1771870081697,3.99052685,1864.0,1863.1,4.03202515]
[1771870082901,4.25879685,1864.0,1863.1,4.03202515]
[1771870083202,3.99052685,1863.6,1862.8,4.03202515]
[1771870084905,3.99052685,1863.6,1862.0,4.03202515]
[1771870084906,3.99052685,1863.1,1862.0,4.03202515]
[1771870085302,3.99052685,1863.1,1862.2,4.03202515]
[1771870085502,3.99052685,1862.9,1862.2,4.03202515]
[1771870086208,3.99543401,1862.9,1862.2,4.03750789]
[1771870087307,3.99543401,1862.9,1862.2,0.00548274]
[1771870088207,3.99052685,1862.7,1862.2,4.03750789]
[1771870088806,3.99052685,1862.7,1862.2,0.00548274]
[1771870089208,3.99052685,1862.7,1862.2,4.03750789]
[1771870090104,3.99052685,1862.7,1862.2,0.00548274]
[1771870090306,3.99052685,1862.7,1861.8,4.03202515]
[1771870091211,3.99052685,1862.7,1861.8,4.03847883]
[1771870095004,3.99052685,1862.7,1861.8,4.30705883]
[1771870095209,3.99543401,1862.9,1862.0,4.03202515]
[1771870096313,0.00490716,1862.9,1862.2,4.03202515]
[1771870096513,3.99052685,1863.3,1862.2,4.03202515]
[1771870097207,3.99052685,1863.3,1862.3,7.04188058]
[1771870097408,3.99742713,1863.3,1862.4,4.03202515]
[1771870098511,3.99742713,1863.3,1862.6,3.73398012]
[1771870100714,3.99742713,1863.3,1862.4,4.06077793]
[1771870101613,3.89235345,1863.1,1862.4,4.06077793]
[1771870101812,3.89235345,1863.1,1861.9,4.06077793]
[1771870102115,3.89235345,1863.1,1862.0,4.06077793]
[1771870103008,0.26841,1863.0,1862.0,4.06077793]
[1771870103215,3.89235345,1862.9,1862.0,4.06077793]
[1771870104417,3.89235345,1862.8,1861.8,4.06723161]
[1771870106016,3.89235345,1862.6,1861.8,4.06723161]
[1771870106815,3.89235345,1862.9,1862.0,4.06077793]
[1771870109318,4.42836002,1862.8,1862.0,4.06077793]
[1771870109517,3.89235345,1862.8,1862.0,4.06077793]
[1771870110617,3.89235345,1862.6,1861.8,0.00645368]
[1771870110816,4.4285266,1862.5,1861.8,4.06723161]
[1771870111016,4.16080345,1862.7,1861.8,4.06723161]
[1771870111220,0.53619239,1862.6,1861.8,4.06723161]
[1771870111422,3.89235345,1863.0,1862.0,4.06077793]
[1771870111621,3.89235345,1862.8,1862.0,4.06077793]
[1771870111818,3.89235345,1862.8,1861.8,0.00645368]
[1771870111819,3.89235345,1862.6,1861.8,4.06723161]
[1771870112014,3.89235345,1862.4,1861.8,4.06723161]
[1771870112417,3.89235345,1862.6,1861.8,4.06723161]
[1771870112619,0.53673866,1862.5,1861.8,4.06723161]
[1771870112917,3.89235345,1862.6,1861.8,4.06723161]
[1771870113117,4.42915605,1862.5,1861.8,4.06723161]
[1771870113322,3.89235345,1862.5,1861.8,4.06723161]
[1771870115421,4.42957397,1862.4,1861.8,4.06723161]
[1771870115624,3.89235345,1862.4,1861.8,4.06723161]
[1771870116522,3.89235345,1862.6,1861.8,4.06723161]
[1771870116823,0.53705954,1862.5,1861.8,4.06723161]